fUSD/lending_fUSD_20250510
["ID","MTS","AMOUNT","RATE_DAILY","PERIOD"]
[360574562,1746893488584,-882.33,0.00019178,2]
[360574563,1746893488594,-400.0,0.00019178,2]
[360574564,1746893488603,-400.0,0.00019178,2]
[360574565,1746893488613,-400.0,0.00019178,2]
[360574566,1746893488622,-400.0,0.00019178,2]
[360574567,1746893488631,-483.7286939,0.00019178,2]
[360574568,1746893488641,-882.33,0.00019178,2]
[360574569,1746893488651,-400.0,0.00019178,2]
[360574570,1746893488661,-400.0,0.00019178,2]
[360574571,1746893488670,-882.33,0.00019178,2]
[360574572,1746893488679,-403.57645856,0.00019178,2]
[360574573,1746893488690,-400.0,0.00019178,2]
[360574574,1746893488700,-400.0,0.00019178,2]
[360574575,1746893488711,-882.33,0.00019178,2]
[360574576,1746893488720,-400.0,0.00019178,2]
[360574577,1746893488731,-400.0,0.00019178,2]
[360574578,1746893488741,-882.33,0.00019178,2]
[360574579,1746893488751,-400.0,0.00019178,2]
[360574580,1746893488761,-400.0,0.00019178,2]
[360574581,1746893488771,-882.33,0.00019178,2]
[360574582,1746893488780,-306.2,0.00019178,2]
[360574583,1746893488790,-400.0,0.00019178,2]
[360574584,1746893488799,-882.33,0.00019178,2]
[360574585,1746893488809,-882.33,0.00019178,2]
[360574586,1746893488818,-882.33,0.00019178,2]
[360574587,1746893488827,-402.82790758,0.00019178,2]
[360574588,1746893488836,-882.33,0.00019178,2]
[360574589,1746893488845,-400.0,0.00019178,2]
[360574590,1746893488855,-882.33,0.00019178,2]
[360574591,1746893488865,-400.0,0.00019178,2]
[360574592,1746893488874,-400.0,0.00019178,2]
[360574593,1746893488883,-2000.0,0.00019178,2]
[360574594,1746893488893,-151.0,0.00019178,2]
[360574595,1746893488902,-400.0,0.00019178,2]
[360574596,1746893488911,-976.68395612,0.00019178,2]
[360574597,1746893488920,-200.480455,0.00019178,2]
[360574598,1746893488929,-428.51,0.00019178,2]
[360574599,1746893488938,-428.51,0.00019178,2]
[360574600,1746893488948,-405.69223356,0.00019178,2]
[360574601,1746893488957,-428.51,0.00019178,2]
[360574602,1746893488966,-428.51,0.00019178,2]
[360574603,1746893488975,-428.51,0.00019178,2]
[360574604,1746893488984,-428.51,0.00019178,2]
[360574605,1746893488993,-400.0,0.00019178,2]
[360574606,1746893489003,-428.51,0.00019178,2]
[360574607,1746893489013,-400.0,0.00019178,2]
[360574608,1746893489022,-400.0,0.00019178,2]
[360574609,1746893489033,-428.51,0.00019178,2]
[360574610,1746893489042,-474.62518345,0.00019178,2]
[360574611,1746893489052,-408.38106723,0.00019178,2]
[360574612,1746893489061,-400.0,0.00019178,2]
[360574613,1746893489071,-428.51,0.00019178,2]
[360574614,1746893489080,-428.51,0.00019178,2]
[360574615,1746893489089,-7165.6,0.00019178,2]
[360574616,1746893489098,-400.0,0.00019178,2]
[360574617,1746893489108,-7165.6,0.00019178,2]
[360574618,1746893489117,-400.0,0.00019178,2]
[360574619,1746893489127,-5852.47410365,0.00019178,2]
[360574620,1746893489153,-1313.12589635,0.00019178,2]
[360574621,1746893489162,-400.0,0.00019178,2]
[360574622,1746893489171,-400.0,0.00019178,2]
[360574623,1746893489182,-7165.6,0.00019178,2]
[360574624,1746893489191,-400.0,0.00019178,2]
[360574625,1746893489200,-400.0,0.00019178,2]
[360574626,1746893489209,-7165.6,0.00019178,2]
[360574627,1746893489218,-400.0,0.00019178,2]
[360574628,1746893489228,-400.0,0.00019178,2]
[360574629,1746893489237,-7165.6,0.00019178,2]
[360574630,1746893489247,-400.0,0.00019178,2]
[360574631,1746893489256,-7165.6,0.00019178,2]
[360574632,1746893489265,-400.0,0.00019178,2]
[360574633,1746893489275,-400.0,0.00019178,2]
[360574634,1746893489284,-400.0,0.00019178,2]
[360574635,1746893489293,-7165.6,0.00019178,2]
[360574636,1746893489303,-400.0,0.00019178,2]
[360574637,1746893489312,-300.71898,0.00019178,2]
[360574638,1746893489321,-2707.61998956,0.00019178,2]
[360574639,1746893489385,-4457.98001044,0.00019178,2]
[360574640,1746893489394,-400.0,0.00019178,2]
[360574641,1746893489404,-400.0,0.00019178,2]
[360574642,1746893489413,-260.00947706,0.00019178,2]
[360574643,1746893489467,-479.48678608,0.00019178,2]
[360574644,1746893489478,-262.86340872,0.00019178,2]
[360574645,1746893506309,1742.16,0.00020575,30]
[360574653,1746893639859,1414.56333238,0.00027671,33]
[360574654,1746893709150,4190.932,1.096e-05,30]
[360574655,1746893887393,250.0,0.00017,2]
[360574656,1746893893066,737.55,0.00016256,2]
[360574657,1746893908426,707.48,0.00013699,2]
[360575110,1746894060558,-218.71841241,0.00018153,2]
[360575111,1746894066142,-152.0,0.00018153,2]
[360575114,1746894328834,160.0757604,0.00011,2]
[360575115,1746894330446,1251.84,0.00024937,120]
[360575116,1746894330648,1251.84,0.00027204,120]
[360575117,1746894330692,-168.74,0.00018136,2]
[360575120,1746894429975,174.27085,0.0001899,21]
[360575121,1746894430014,174.27085,0.0001899,21]
[360575122,1746894452289,-192.918088,0.00018045,2]
[360575123,1746894452312,-41.84727357,0.00018113,2]
[360575124,1746894452340,-110.15272643,0.00018113,2]
[360575125,1746894452363,-321.04573682,0.00018136,2]
[360575139,1746894537985,1524.39,0.00020575,30]
[360575167,1746894632296,-762.05426318,0.00018136,2]
[360575168,1746894632306,-250.0,0.00018138,2]
[360575169,1746894632316,-98.55085613,0.00018141,2]
[360575170,1746894632327,-101.44914387,0.00018141,2]
[360575171,1746894632336,-224.84220458,0.00018145,2]
[360575172,1746894632347,-20.71779542,0.00018145,2]
[360575173,1746894632356,-420.96320458,0.00018153,2]
[360575174,1746894632368,-208.31838301,0.00018153,2]
[360575175,1746894632377,-468.65,0.0001817,2]
[360575176,1746894632387,-200.0,0.00018188,2]
[360575177,1746894632396,-577.53604312,0.0001852,2]
[360575178,1746894632407,-160.01395688,0.0001852,2]
[360575179,1746894632416,-169.37,0.00018826,2]
[360575180,1746894632425,-24.16777261,0.00018878,2]
[360575181,1746894632437,-1378.72222739,0.00018878,2]
[360575182,1746894632446,-207.4,0.00018989,2]
[360575183,1746894632455,-1200.0,0.00018998,2]
[360575184,1746894632465,-5624.14,0.00019,2]
[360575185,1746894632475,-5624.14,0.00019,2]
[360575186,1746894632484,-5624.14,0.00019,2]
[360575187,1746894632494,-2249.66,0.00019,2]
[360575188,1746894632503,-2249.66,0.00019,2]
[360575189,1746894632514,-1355.0,0.00019,2]
[360575190,1746894632523,-300.0,0.00019,2]
[360575191,1746894632533,-559.17710428,0.00019013,2]
[360575194,1746894632542,-1000.0,0.00019072,2]
[360575196,1746894632551,-500.0,0.00019072,2]
[360575198,1746894632560,-500.0,0.00019072,2]
[360575200,1746894632570,-433.40188516,0.00019072,2]
[360575202,1746894632579,-500.0,0.00019072,2]
[360575205,1746894632588,-500.0,0.00019072,2]
[360575208,1746894632597,-500.0,0.00019072,2]
[360575209,1746894632606,-500.0,0.00019072,2]
[360575210,1746894632614,-500.0,0.00019072,2]
[360575211,1746894632623,-500.0,0.00019072,2]
[360575212,1746894632632,-500.0,0.00019072,2]
[360575213,1746894632643,-500.0,0.00019072,2]
[360575214,1746894632652,-500.0,0.00019072,2]
[360575215,1746894632661,-428.15458097,0.00019072,2]
[360575216,1746894632670,-500.0,0.00019072,2]
[360575217,1746894632679,-500.0,0.00019072,2]
[360575218,1746894632689,-500.0,0.00019072,2]
[360575219,1746894632698,-500.0,0.00019072,2]
[360575220,1746894632707,-500.0,0.00019072,2]
[360575221,1746894632717,-500.0,0.00019072,2]
[360575222,1746894632726,-500.0,0.00019072,2]
[360575223,1746894632736,-500.0,0.00019072,2]
[360575224,1746894632747,-500.0,0.00019072,2]
[360575225,1746894632756,-1473.366,0.00019077,2]
[360575226,1746894632765,-53007.20675866,0.00019078,2]
[360575227,1746894632777,-300.0,0.00019078,2]
[360575236,1746894632888,-162.57222607,0.00019077,2]
[360575238,1746894632897,-249.6911877,0.00019077,2]
[360575240,1746894632909,-74.57537309,0.00019077,2]
[360575241,1746894632918,-243.98729974,0.00019077,2]
[360575242,1746894632927,-10865.50923764,0.00019078,2]
[360575355,1746894638169,-806.41451356,0.00018978,2]
[360575356,1746894638282,-815.08312814,0.00018978,2]
[360575357,1746894638292,-15443.95882244,0.00019078,2]
[360575358,1746894638310,-648.99999676,0.00019078,2]
[360575359,1746894638337,-417.36841917,0.00019078,2]
[360575360,1746894638348,-5641.78,0.00019078,2]
[360575374,1746894640170,-500.0,0.00018603,2]
[360575376,1746894640180,-1621.4976417,0.00018989,2]
[360575378,1746894640189,-20818.76275199,0.00019078,2]
[360575379,1746894640198,-1011.0329069,0.00019078,2]
[360575380,1746894640208,-153.31708481,0.00019078,2]
[360575382,1746894640405,-1283.79155856,0.00019078,2]
[360575383,1746894640417,-509.35450013,0.00019078,2]
[360575384,1746894640443,-608.3615565,0.00019078,2]
[360575385,1746894640452,-668.65185757,0.00019166,2]
[360575386,1746894640461,-276.1458163,0.00019166,2]
[360575387,1746894640471,-165.42,0.00019168,2]
[360575388,1746894640480,-165.42,0.00019168,2]
[360575389,1746894640490,-165.42,0.00019168,2]
[360575390,1746894640500,-165.42,0.00019168,2]
[360575391,1746894640509,-294.08,0.00019168,2]
[360575392,1746894640520,-500.0,0.00019173,2]
[360575393,1746894640530,-500.0,0.00019173,2]
[360575394,1746894640540,-320.87491241,0.00019177,2]
[360575395,1746894640550,-300.0,0.00019177,2]
[360575396,1746894640559,-151.148592,0.00019178,2]
[360575397,1746894640569,-151.0,0.00019178,2]
[360575398,1746894640579,-151.0,0.00019178,2]
[360575399,1746894640588,-151.0,0.00019178,2]
[360575400,1746894640598,-151.0,0.00019178,2]
[360575401,1746894640608,-151.0,0.00019178,2]
[360575402,1746894640617,-151.0,0.00019178,2]
[360575403,1746894640627,-151.0,0.00019178,2]
[360575404,1746894640636,-151.0,0.00019178,2]
[360575405,1746894640645,-151.0,0.00019178,2]
[360575406,1746894640655,-151.0,0.00019178,2]
[360575407,1746894640664,-151.0,0.00019178,2]
[360575408,1746894640674,-151.0,0.00019178,2]
[360575409,1746894640684,-151.0,0.00019178,2]
[360575410,1746894640693,-151.0,0.00019178,2]
[360575411,1746894640702,-151.0,0.00019178,2]
[360575412,1746894640711,-151.0,0.00019178,2]
[360575413,1746894640720,-151.0,0.00019178,2]
[360575414,1746894640729,-151.0,0.00019178,2]
[360575415,1746894640739,-454.650483,0.00019178,2]
[360575416,1746894640748,-454.650483,0.00019178,2]
[360575417,1746894640757,-454.650483,0.00019178,2]
[360575418,1746894640766,-454.650483,0.00019178,2]
[360575419,1746894640776,-151.0,0.00019178,2]
[360575420,1746894640785,-151.0,0.00019178,2]
[360575421,1746894640795,-151.0,0.00019178,2]
[360575422,1746894640809,-151.661558,0.00019178,2]
[360575423,1746894640819,-151.0,0.00019178,2]
[360575424,1746894640828,-151.0,0.00019178,2]
[360575425,1746894640838,-154.064657,0.00019178,2]
[360575426,1746894640848,-310.686749,0.00019178,2]
[360575427,1746894640857,-310.686749,0.00019178,2]
[360575428,1746894640866,-310.686749,0.00019178,2]
[360575429,1746894640877,-310.686749,0.00019178,2]
[360575430,1746894640886,-151.0,0.00019178,2]
[360575431,1746894640896,-151.0,0.00019178,2]
[360575432,1746894640906,-153.246804,0.00019178,2]
[360575433,1746894640916,-400.0,0.00019178,2]
[360575434,1746894640926,-270.4168312,0.00019178,2]
[360575435,1746894640936,-400.0,0.00019178,2]
[360575436,1746894640945,-400.0,0.00019178,2]
[360575437,1746894640955,-400.0,0.00019178,2]
[360575438,1746894640964,-400.0,0.00019178,2]
[360575439,1746894640974,-400.0,0.00019178,2]
[360575440,1746894640983,-400.0,0.00019178,2]
[360575441,1746894640993,-400.0,0.00019178,2]
[360575442,1746894641003,-443.12375331,0.00019178,2]
[360575443,1746894641013,-400.0,0.00019178,2]
[360575444,1746894641022,-400.0,0.00019178,2]
[360575445,1746894641032,-400.0,0.00019178,2]
[360575446,1746894641041,-511.32347803,0.00019178,2]
[360575447,1746894641051,-400.0,0.00019178,2]
[360575448,1746894641060,-400.0,0.00019178,2]
[360575449,1746894641069,-400.0,0.00019178,2]
[360575450,1746894641080,-400.0,0.00019178,2]
[360575451,1746894641090,-400.0,0.00019178,2]
[360575452,1746894641099,-400.0,0.00019178,2]
[360575453,1746894641108,-405.30360626,0.00019178,2]
[360575454,1746894641118,-400.0,0.00019178,2]
[360575455,1746894641127,-400.0,0.00019178,2]
[360575456,1746894641137,-500.0,0.00019178,2]
[360575457,1746894641147,-400.0,0.00019178,2]
[360575458,1746894641156,-400.0,0.00019178,2]
[360575459,1746894641166,-400.0,0.00019178,2]
[360575460,1746894641176,-400.0,0.00019178,2]
[360575461,1746894641186,-400.0,0.00019178,2]
[360575462,1746894641198,-334.13236738,0.00019178,2]
[360575463,1746894641208,-486.59288208,0.00019178,2]
[360575464,1746894641218,-402.22856533,0.00019178,2]
[360575465,1746894641228,-400.0,0.00019178,2]
[360575466,1746894641237,-829.78200853,0.00019178,2]
[360575467,1746894641247,-400.0,0.00019178,2]
[360575468,1746894641257,-404.84989848,0.00019178,2]
[360575469,1746894641266,-500.0,0.00019178,2]
[360575470,1746894641275,-400.0,0.00019178,2]
[360575471,1746894641285,-171.62085596,0.00019178,2]
[360575472,1746894641294,-400.0,0.00019178,2]
[360575473,1746894641303,-400.0,0.00019178,2]
[360575474,1746894641312,-400.0,0.00019178,2]
[360575475,1746894641322,-400.0,0.00019178,2]
[360575476,1746894641332,-400.0,0.00019178,2]
[360575477,1746894641341,-400.0,0.00019178,2]
[360575478,1746894641350,-400.0,0.00019178,2]
[360575479,1746894641360,-400.0,0.00019178,2]
[360575480,1746894641369,-400.0,0.00019178,2]
[360575481,1746894641379,-400.0,0.00019178,2]
[360575482,1746894641389,-400.0,0.00019178,2]
[360575483,1746894641398,-400.0,0.00019178,2]
[360575484,1746894641407,-400.0,0.00019178,2]
[360575485,1746894641416,-400.0,0.00019178,2]
[360575486,1746894641426,-400.0,0.00019178,2]
[360575487,1746894641436,-400.0,0.00019178,2]
[360575488,1746894641445,-400.0,0.00019178,2]
[360575489,1746894641454,-400.0,0.00019178,2]
[360575490,1746894641463,-400.0,0.00019178,2]
[360575491,1746894641472,-353.98218612,0.00019178,2]
[360575492,1746894641481,-151.0,0.00019178,2]
[360575493,1746894641490,-400.0,0.00019178,2]
[360575494,1746894641500,-400.0,0.00019178,2]
[360575495,1746894641509,-151.0,0.00019178,2]
[360575496,1746894641518,-400.0,0.00019178,2]
[360575497,1746894641527,-400.0,0.00019178,2]
[360575498,1746894641536,-154.939559,0.00019178,2]
[360575499,1746894641545,-400.0,0.00019178,2]
[360575500,1746894641555,-400.0,0.00019178,2]
[360575501,1746894641564,-400.0,0.00019178,2]
[360575502,1746894641573,-400.0,0.00019178,2]
[360575503,1746894641582,-400.0,0.00019178,2]
[360575504,1746894641591,-400.0,0.00019178,2]
[360575505,1746894641600,-155.998766,0.00019178,2]
[360575506,1746894641609,-400.0,0.00019178,2]
[360575507,1746894641619,-332.78,0.00019178,2]
[360575508,1746894641628,-400.0,0.00019178,2]
[360575509,1746894641638,-400.0,0.00019178,2]
[360575510,1746894641647,-400.0,0.00019178,2]
[360575511,1746894641656,-400.0,0.00019178,2]
[360575512,1746894641665,-400.0,0.00019178,2]
[360575513,1746894641674,-400.0,0.00019178,2]
[360575514,1746894641683,-295.18,0.00019178,2]
[360575515,1746894641693,-400.0,0.00019178,2]
[360575516,1746894641702,-400.0,0.00019178,2]
[360575517,1746894641711,-400.0,0.00019178,2]
[360575518,1746894641720,-400.0,0.00019178,2]
[360575519,1746894641729,-478.84,0.00019178,2]
[360575520,1746894641738,-400.0,0.00019178,2]
[360575521,1746894641748,-400.0,0.00019178,2]
[360575522,1746894641757,-400.0,0.00019178,2]
[360575523,1746894641766,-400.0,0.00019178,2]
[360575524,1746894641776,-400.0,0.00019178,2]
[360575525,1746894641785,-400.0,0.00019178,2]
[360575526,1746894641794,-400.0,0.00019178,2]
[360575527,1746894641809,-400.0,0.00019178,2]
[360575528,1746894641818,-502.59709099,0.00019178,2]
[360575529,1746894641828,-170.04288718,0.00019178,2]
[360575530,1746894641837,-151.0,0.00019178,2]
[360575531,1746894641846,-400.0,0.00019178,2]
[360575532,1746894641856,-400.0,0.00019178,2]
[360575533,1746894641865,-513.9250557,0.00019178,2]
[360575534,1746894641877,-400.0,0.00019178,2]
[360575535,1746894641887,-400.0,0.00019178,2]
[360575536,1746894641897,-400.0,0.00019178,2]
[360575537,1746894641907,-400.0,0.00019178,2]
[360575538,1746894641916,-151.457001,0.00019178,2]
[360575539,1746894641926,-400.0,0.00019178,2]
[360575540,1746894641935,-400.0,0.00019178,2]
[360575541,1746894641944,-400.0,0.00019178,2]
[360575542,1746894641953,-400.0,0.00019178,2]
[360575543,1746894641964,-400.0,0.00019178,2]
[360575544,1746894641973,-400.0,0.00019178,2]
[360575545,1746894641983,-400.0,0.00019178,2]
[360575546,1746894641992,-151.0,0.00019178,2]
[360575547,1746894642002,-400.0,0.00019178,2]
[360575548,1746894642012,-400.0,0.00019178,2]
[360575549,1746894642021,-395.22,0.00019178,2]
[360575550,1746894642030,-400.0,0.00019178,2]
[360575551,1746894642039,-400.0,0.00019178,2]
[360575552,1746894642048,-400.0,0.00019178,2]
[360575553,1746894642058,-400.0,0.00019178,2]
[360575554,1746894642067,-400.0,0.00019178,2]
[360575555,1746894642076,-400.0,0.00019178,2]
[360575556,1746894642085,-400.0,0.00019178,2]
[360575557,1746894642094,-400.0,0.00019178,2]
[360575558,1746894642103,-450.0,0.00019178,2]
[360575559,1746894642113,-400.0,0.00019178,2]
[360575560,1746894642123,-400.0,0.00019178,2]
[360575561,1746894642133,-300.0,0.00019178,2]
[360575562,1746894642142,-151.0,0.00019178,2]
[360575563,1746894642152,-151.0,0.00019178,2]
[360575564,1746894642162,-400.0,0.00019178,2]
[360575565,1746894642172,-400.0,0.00019178,2]
[360575566,1746894642181,-151.0,0.00019178,2]
[360575567,1746894642191,-218.007163,0.00019178,2]
[360575568,1746894642201,-400.0,0.00019178,2]
[360575569,1746894642210,-587.93,0.00019178,2]
[360575570,1746894642220,-587.93,0.00019178,2]
[360575571,1746894642230,-587.93,0.00019178,2]
[360575572,1746894642239,-587.93,0.00019178,2]
[360575573,1746894642249,-587.93,0.00019178,2]
[360575574,1746894642259,-587.93,0.00019178,2]
[360575575,1746894642268,-587.93,0.00019178,2]
[360575576,1746894642489,-587.93,0.00019178,2]
[360575577,1746894642500,-587.93,0.00019178,2]
[360575578,1746894642511,-400.0,0.00019178,2]
[360575579,1746894642520,-587.93,0.00019178,2]
[360575580,1746894642530,-400.0,0.00019178,2]
[360575581,1746894642541,-587.93,0.00019178,2]
[360575582,1746894642550,-400.0,0.00019178,2]
[360575583,1746894642560,-587.93,0.00019178,2]
[360575584,1746894642570,-400.0,0.00019178,2]
[360575585,1746894642579,-587.93,0.00019178,2]
[360575586,1746894642588,-400.0,0.00019178,2]
[360575587,1746894642598,-400.0,0.00019178,2]
[360575588,1746894642607,-400.0,0.00019178,2]
[360575589,1746894642616,-400.0,0.00019178,2]
[360575590,1746894642626,-400.0,0.00019178,2]
[360575591,1746894642635,-400.0,0.00019178,2]
[360575592,1746894642644,-400.0,0.00019178,2]
[360575594,1746894642654,-400.0,0.00019178,2]
[360575596,1746894642663,-400.0,0.00019178,2]
[360575597,1746894642672,-400.0,0.00019178,2]
[360575598,1746894642681,-400.0,0.00019178,2]
[360575600,1746894642691,-151.0,0.00019178,2]
[360575601,1746894642700,-151.0,0.00019178,2]
[360575602,1746894642709,-151.0,0.00019178,2]
[360575603,1746894642719,-151.0,0.00019178,2]
[360575604,1746894642728,-151.0,0.00019178,2]
[360575605,1746894642737,-276.471926,0.00019178,2]
[360575606,1746894642747,-151.0,0.00019178,2]
[360575607,1746894642756,-400.0,0.00019178,2]
[360575608,1746894642766,-400.0,0.00019178,2]
[360575609,1746894642775,-285.42156025,0.00019178,2]
[360575610,1746894642784,-151.0,0.00019178,2]
[360575611,1746894642795,-400.0,0.00019178,2]
[360575612,1746894642807,-400.0,0.00019178,2]
[360575613,1746894642816,-400.0,0.00019178,2]
[360575614,1746894642825,-400.0,0.00019178,2]
[360575615,1746894642835,-151.0,0.00019178,2]
[360575616,1746894642845,-150.0,0.00019178,2]
[360575617,1746894642854,-246.23185,0.00019178,2]
[360575618,1746894642863,-151.0,0.00019178,2]
[360575619,1746894642874,-400.0,0.00019178,2]
[360575620,1746894642884,-400.0,0.00019178,2]
[360575621,1746894642893,-403.03537546,0.00019178,2]
[360575622,1746894642903,-400.0,0.00019178,2]
[360575623,1746894642912,-400.0,0.00019178,2]
[360575624,1746894642922,-400.0,0.00019178,2]
[360575625,1746894642932,-151.0,0.00019178,2]
[360575626,1746894642941,-151.0,0.00019178,2]
[360575627,1746894642951,-151.0,0.00019178,2]
[360575628,1746894642960,-151.0,0.00019178,2]
[360575629,1746894642969,-446.94687307,0.00019178,2]
[360575630,1746894642979,-400.0,0.00019178,2]
[360575632,1746894642988,-400.0,0.00019178,2]
[360575633,1746894642997,-404.28853668,0.00019178,2]
[360575634,1746894643006,-209.25,0.00019178,2]
[360575635,1746894643015,-403.27720785,0.00019178,2]
[360575636,1746894643024,-400.0,0.00019178,2]
[360575637,1746894643033,-400.0,0.00019178,2]
[360575641,1746894643042,-400.0,0.00019178,2]
[360575643,1746894643051,-403.66128293,0.00019178,2]
[360575645,1746894643061,-408.00525234,0.00019178,2]
[360575647,1746894643071,-400.0,0.00019178,2]
[360575649,1746894643080,-400.0,0.00019178,2]
[360575652,1746894643090,-400.0,0.00019178,2]
[360575656,1746894643099,-400.0,0.00019178,2]
[360575660,1746894643109,-400.0,0.00019178,2]
[360575663,1746894643119,-400.0,0.00019178,2]
[360575666,1746894643129,-158.36322465,0.00019178,2]
[360575669,1746894643139,-456.04,0.00019178,2]
[360575671,1746894643149,-151.0,0.00019178,2]
[360575674,1746894643160,-456.04,0.00019178,2]
[360575677,1746894643170,-456.04,0.00019178,2]
[360575680,1746894643180,-151.0,0.00019178,2]
[360575682,1746894643191,-456.04,0.00019178,2]
[360575685,1746894643203,-456.04,0.00019178,2]
[360575687,1746894643218,-151.0,0.00019178,2]
[360575689,1746894643229,-400.0,0.00019178,2]
[360575691,1746894643240,-456.04,0.00019178,2]
[360575693,1746894643251,-201.582375,0.00019178,2]
[360575695,1746894643262,-456.04,0.00019178,2]
[360575697,1746894643274,-456.04,0.00019178,2]
[360575699,1746894643285,-400.0,0.00019178,2]
[360575701,1746894643295,-456.04,0.00019178,2]
[360575703,1746894643305,-189.94977132,0.00019178,2]
[360575705,1746894643315,-456.04,0.00019178,2]
[360575707,1746894643325,-400.0,0.00019178,2]
[360575709,1746894643335,-456.04,0.00019178,2]
[360575711,1746894643345,-456.04,0.00019178,2]
[360575713,1746894643355,-456.04,0.00019178,2]
[360575715,1746894643364,-400.0,0.00019178,2]
[360575717,1746894643374,-400.0,0.00019178,2]
[360575719,1746894643383,-400.0,0.00019178,2]
[360575721,1746894643393,-400.0,0.00019178,2]
[360575723,1746894643403,-400.0,0.00019178,2]
[360575725,1746894643413,-400.0,0.00019178,2]
[360575727,1746894643422,-400.0,0.00019178,2]
[360575729,1746894643433,-400.0,0.00019178,2]
[360575731,1746894643442,-400.0,0.00019178,2]
[360575733,1746894643452,-400.0,0.00019178,2]
[360575735,1746894643461,-400.0,0.00019178,2]
[360575737,1746894643471,-156.43647503,0.00019178,2]
[360575739,1746894643480,-400.0,0.00019178,2]
[360575741,1746894643489,-404.35749493,0.00019178,2]
[360575743,1746894643499,-400.0,0.00019178,2]
[360575745,1746894643510,-151.0,0.00019178,2]
[360575747,1746894643519,-400.0,0.00019178,2]
[360575749,1746894643528,-400.0,0.00019178,2]
[360575750,1746894643538,-159.159755,0.00019178,2]
[360575752,1746894643547,-400.0,0.00019178,2]
[360575755,1746894643558,-400.0,0.00019178,2]
[360575757,1746894643568,-400.0,0.00019178,2]
[360575759,1746894643579,-450.0,0.00019178,2]
[360575761,1746894643589,-400.0,0.00019178,2]
[360575764,1746894643599,-400.0,0.00019178,2]
[360575765,1746894643608,-400.0,0.00019178,2]
[360575767,1746894643618,-400.0,0.00019178,2]
[360575769,1746894643627,-400.0,0.00019178,2]
[360575770,1746894643636,-400.0,0.00019178,2]
[360575771,1746894643645,-259.11910036,0.00019178,2]
[360575772,1746894643655,-400.0,0.00019178,2]
[360575773,1746894643664,-400.0,0.00019178,2]
[360575774,1746894643674,-400.0,0.00019178,2]
[360575775,1746894643683,-400.0,0.00019178,2]
[360575776,1746894643693,-500.0,0.00019178,2]
[360575777,1746894643702,-400.0,0.00019178,2]
[360575778,1746894643712,-223.17440194,0.00019178,2]
[360575780,1746894643721,-400.0,0.00019178,2]
[360575781,1746894643730,-400.0,0.00019178,2]
[360575782,1746894643739,-400.0,0.00019178,2]
[360575783,1746894643748,-400.0,0.00019178,2]
[360575784,1746894643759,-400.0,0.00019178,2]
[360575785,1746894643768,-400.0,0.00019178,2]
[360575786,1746894643777,-400.0,0.00019178,2]
[360575787,1746894643790,-400.0,0.00019178,2]
[360575788,1746894643801,-472.56982961,0.00019178,2]
[360575789,1746894643813,-400.0,0.00019178,2]
[360575790,1746894643824,-473.35508597,0.00019178,2]